{"text_format":"1","workbook":"xlsx","n_sheets":42,"sheets":["Contractor Input","EV_Cover_Sheet","EV_MMU","EV_Letter_of_Support","EV_Statement_of_Attainment","EV_BHP_Asset_Induction","EV_MAC_Site_Induction","EV_MAC_Code_of_Conduct","EV_Authorised_Isolation","EV_High_Risk_Work","EV_WAF","EV_Relevant_Attachments","EV_BHP_LV_Licence","EV_MHV_License","EV_RII_Comp","EV_Other","EV_CERT_II_Drill_Ops","EV_CERT_III_Drill_Ops","EV_CERT_IV_Drill_Ops","EV_Driller_RIIOGD205","EV_Driller_RIIOGD206","EV_Driller_RIIOGD304","EV_Driller_RIIOGD305","EV_Driller_RIIOGD402","EV_Driller_RIIOGD405","EV_Driller_Group","EV_Water_Bore_Drill","EV_Driller_LtrEndorse","EV_Barricading","EV_Working_at_Heights","EV_SOA_WAH","EV_Lifting","EV_CCA","EV_Machine_Specific","EV_Pressure_Jetting_A","EV_Pressure_Jetting_B","EV_HPW_Jetting_Awareness","EV_MAC_STE_TRN_091","EV_RTO_MSMS00018","EV_Missing_Equip","MD_MAC-STE-GDE-007","Workbook Parameters"],"not_rendered":{"charts":0,"images":20,"macros":1,"external_links":0,"defined_names":21,"comments":0,"pivot_tables":0},"unopened":[],"bounds":{"document_bytes":16777216,"sheet_cells":100000,"rows_first":2000,"rows_last":500,"rows_between":2000,"halvings":0,"cell_chars":16384,"cell_head_chars":4096},"cells_cut":0,"cells_raw":0,"read":"whole","date_system":"1900"}

{"sheet":"Contractor Input","index":0,"n_rows":101,"n_cols":71,"rows_kept":101,"cut":false,"hidden":false,"merged":[[44,53,44,62],[44,63,44,69],[44,70,44,71],[39,63,39,69],[39,70,39,71],[40,53,40,62],[40,63,40,69],[40,70,40,71],[41,53,41,62],[41,63,41,69],[41,70,41,71],[42,53,42,62],[42,63,42,69],[42,70,42,71],[43,63,43,69],[43,70,43,71],[43,53,43,62],[39,53,39,62],[35,70,35,71],[36,53,36,62],[36,63,36,69],[36,70,36,71],[37,53,37,62],[37,63,37,69],[37,70,37,71],[30,63,30,69],[38,53,38,62],[38,63,38,69],[38,70,38,71],[33,53,33,62],[33,63,33,69],[33,70,33,71],[35,63,35,69],[32,53,32,62],[32,63,32,69],[32,70,32,71],[31,63,31,69],[31,70,31,71],[31,53,31,62],[34,53,34,62],[34,63,34,69],[34,70,34,71],[21,53,21,62],[21,63,21,69],[21,70,21,71],[22,53,22,62],[20,53,20,62],[25,53,25,62],[25,63,25,69],[25,70,25,71],[24,63,24,69],[24,70,24,71],[23,53,23,62],[26,53,26,62],[26,63,26,69],[30,53,30,62],[28,53,28,62],[28,63,28,69],[29,53,29,62],[29,63,29,69],[29,70,29,71],[23,63,23,69],[23,70,23,71],[27,53,27,62],[27,63,27,69],[27,70,27,71],[2,53,2,56],[2,57,2,71],[3,53,3,56],[3,57,3,71],[4,53,4,56],[4,57,4,71],[5,53,5,56],[5,57,5,71],[11,53,11,71],[35,53,35,62],[47,53,47,62],[47,70,47,71],[13,53,13,62],[8,57,8,71],[8,53,8,56],[12,70,12,71],[14,53,14,62],[15,53,15,62],[16,53,16,62],[17,53,17,62],[22,63,22,69],[22,70,22,71],[18,53,18,62],[19,63,19,69],[19,53,19,62],[19,70,19,71],[20,70,20,71],[28,70,28,71],[30,70,30,71],[26,70,26,71],[45,70,45,71],[46,63,46,69],[46,70,46,71],[92,63,92,71],[98,63,98,66],[98,67,98,71],[95,53,95,71],[96,53,96,71],[97,53,97,62],[97,63,97,66],[97,67,97,71],[50,53,50,71],[51,53,51,62],[51,63,51,71],[52,53,52,62],[56,53,56,62],[57,53,57,62],[58,53,58,62],[59,53,59,62],[60,53,60,62],[61,53,61,62],[62,53,62,62],[63,53,63,62],[64,53,64,62],[65,53,65,62],[66,53,66,62],[67,53,67,62],[1,53,1,71],[100,59,100,65],[13,63,13,69],[13,70,13,71],[14,63,14,69],[15,63,15,69],[16,63,16,69],[17,63,17,69],[18,63,18,69],[20,63,20,69],[47,63,47,69],[14,70,14,71],[15,70,15,71],[16,70,16,71],[17,70,17,71],[18,70,18,71],[98,53,98,62],[45,53,45,62],[46,53,46,62],[45,63,45,69],[92,53,92,62],[53,53,53,62],[54,53,54,62],[55,53,55,62],[68,53,68,62],[69,53,69,62],[70,53,70,62],[80,53,80,62],[81,53,81,62],[82,53,82,62],[83,53,83,62],[84,53,84,62],[85,53,85,62],[71,53,71,62],[72,53,72,62],[73,53,73,62],[74,53,74,62],[75,53,75,62],[76,53,76,62],[77,53,77,62],[78,53,78,62],[79,53,79,62],[91,53,91,62],[86,53,86,62],[87,53,87,62],[88,53,88,62],[84,63,84,71],[85,63,85,71],[86,63,86,71],[87,63,87,71],[88,63,88,71],[89,63,89,71],[90,63,90,71],[91,63,91,71],[89,53,89,62],[90,53,90,62],[53,63,53,71],[54,63,54,71],[55,63,55,71],[56,63,56,71],[57,63,57,71],[58,63,58,71],[59,63,59,71],[60,63,60,71],[61,63,61,71],[62,63,62,71],[63,63,63,71],[64,63,64,71],[65,63,65,71],[66,63,66,71],[67,63,67,71],[68,63,68,71],[69,63,69,71],[70,63,70,71],[80,63,80,71],[81,63,81,71],[82,63,82,71],[83,63,83,71],[71,63,71,71],[72,63,72,71],[73,63,73,71],[74,63,74,71],[75,63,75,71],[76,63,76,71],[77,63,77,71],[78,63,78,71],[79,63,79,71]]}
["Double-Click here to toggle all rows."]
[null,null,null,null,null,null,null,null,null,null,null,null,null,null,null,null,null,null,null,null,null,null,null,null,null,null,null,null,null,null,null,null,null,null,null,null,null,null,null,null,null,null,null,null,null,null,null,null,null,null,null,null,null,"Competence Verification & Authorisation \nMAC-STE-FRM-243 Version 5.2\nSection 1 - Contractor Information (Always use/download latest form from nswecinductions.com.au )"]
[null,null,null,null,null,null,null,null,null,null,null,null,null,null,null,null,null,null,null,null,null,null,null,null,null,null,null,null,null,null,null,null,null,null,null,null,null,null,null,null,null,null,null,null,null,null,null,null,null,null,null,null,null,"Name:"]
[null,null,null,null,null,null,null,null,null,null,null,null,null,null,null,null,null,null,null,null,null,null,null,null,null,null,null,null,null,null,null,null,null,null,null,null,null,null,null,null,null,null,null,null,null,null,null,null,null,"AdminMode",null,null,null,"Pegasus Number:",null,null,null,""]
[null,null,null,null,null,null,null,null,null,null,null,null,null,null,null,null,null,null,null,null,null,null,null,null,null,null,null,null,null,null,null,null,null,null,null,null,null,null,null,null,null,null,null,null,null,null,null,null,null,false,null,null,null,"Contracting Company:"]
[null,null,null,null,null,null,null,null,null,null,null,null,null,null,null,null,null,null,null,null,null,null,null,null,null,null,null,null,null,null,null,null,null,null,null,null,null,null,null,null,null,null,null,null,null,null,null,null,null,null,null,null,null,"MAC Site Contact:"]
[null,null,null,null,null,null,null,null,null,null,null,null,null,null,null,null,null,null,null,null,null,null,null,null,null,null,null,null,null,null,null,null,null,null,null,null,null,null,null,null,null,null,null,null,null,null,null,null,null,null,null,null,null,null,null,null,null,null," "]
[null,null,null,null,null,null,null,null,null,null,null,null,null,null,null,null,null,null,null,null,null,null,null,null,null,null,null,null,null,null,null,null,null,null,null,null,null,null,null,null,null,null,null,null,null,null,null,null,null,null,null,null,null,"Section 2 - Contractor Equipment Selection"]
[]
[]
[null,null,null,null,null,null,null,null,null,null,null,null,null,null,null,null,null,null,null,null,null,null,null,null,null,null,null,null,null,null,null,null,null,null,null,null,null,null,null,null,null,null,null,null,null,null,null,null,null,null,null,null,null,"Section 3 - Mandatory Evidence"]
[null,null,"Articulated Haul Truck","Articulated WaterTruck","Backhoe","Blast Hole Drill","Bucket Truck","Chainsaw","Concrete Boom Pump","Crushing Plant","Elevated Work Platform","Excavator","Exploration Drill","Farm Tractor","Grader","Hiab Crane","Manitou (Less than 3 Tonne)","Manitou (More than 3 Tonne)","Medium Vehicle - Fuel Truck","Medium Vehicle - Hiab","Medium Vehicle - Hook Lift Truck","Medium Vehicle - Mobile Mixing Unit","Medium Vehicle - No attachments","Medium Vehicle - With attachments","Medium Vehicle - Stemming Truck","Medium Vehicle - Tipper","Medium Vehicle - Vacuum Tank Truck","Medium Vehicle - Water Truck","Non Slewing Crane","Poly Welder","Pressure Jetting Class A","Pressure Jetting Class B","Rigid Body Haul Truck","Roller Compacter","Scraper","Skid Steer (With Attachments)","Skid Steer (Without Attachments)","Slewing Crane","Tracked Dozer","Tracked Mulcher","Tyre Handler","Water Truck","Wheeled Dozer","Wheeled Loader","Other - Equipment Type Not Listed Above",null,null,null,null,"Worksheet Name cannot contain spaces, table name on sheet must be exactly as per worksheet name",null,null,null,"Mandatory Evidence\n- All attachments must be in .pdf format (Files added as attachments must be accessible when Email to MAC is generated)\n- Maximum size of email and attachments is not to exceed 25MB"]
[null,null,null,null,null,null,null,null,null,null,null,null,null,null,null,null,null,null,null,null,null,null,null,null,null,null,null,null,null,null,null,null,null,null,null,null,null,null,null,null,null,null,null,null,null,null,null,null,"Attachments","Worksheet Name","Selected",null,null,null,null,null,null,null,null,null,null,null,null,null,null,null,null,null,null,null,"# Added"]
[null,null,"x","x","x","x","x","x","x","x","x","x","x","x","x","x","x","x","x","x","x","x","x","x","x","x","x","x","x","x","x","x","x","x","x","x","x","x","x","x","x","x","x","x","x",null,null,null,{"$f":"IF(INDEX(INDIRECT(SelectedEvidenceTable[[#This Row],[Worksheet Name]]),1)=0,0,COUNTA(INDIRECT(SelectedEvidenceTable[[#This Row],[Worksheet Name]])))","v":0},"EV_Letter_of_Support",{"$f":"IF(COUNTIFS($B$11:$AU$11,\"X\",$B14:$AU14,\"x\")>=1,\"x\",\"\")","v":""},null,null,"Employer Letter of Support",null,null,null,null,null,null,null,null,null,null,null,null,null,null,null,null,{"$f":"SelectedEvidenceTable[[#This Row],[Attachments]]","v":0}]
[null,null,"x","x","x","x",null,"x","x","x","x","x","x","x","x","x",null,null,null,null,null,null,null,null,null,null,null,null,"x","x","x","x","x","x","x","x","x","x","x","x","x","x","x","x",null,null,null,null,{"$f":"IF(INDEX(INDIRECT(SelectedEvidenceTable[[#This Row],[Worksheet Name]]),1)=0,0,COUNTA(INDIRECT(SelectedEvidenceTable[[#This Row],[Worksheet Name]])))","v":0},"EV_Statement_of_Attainment","",null,null,"Current Statement of Attainment or Competency Assessment",null,null,null,null,null,null,null,null,null,null,null,null,null,null,null,null,{"$f":"SelectedEvidenceTable[[#This Row],[Attachments]]","v":0}]
[null,null,null,null,null,null,null,null,null,null,null,null,null,null,null,null,null,null,null,null,null,null,null,null,null,null,null,null,null,null,null,null,null,null,null,null,null,null,null,null,null,null,null,null,null,null,null,null,{"$f":"IF(INDEX(INDIRECT(SelectedEvidenceTable[[#This Row],[Worksheet Name]]),1)=0,0,COUNTA(INDIRECT(SelectedEvidenceTable[[#This Row],[Worksheet Name]])))","v":0},"EV_BHP_Asset_Induction","",null,null,"BHP Asset Induction",null,null,null,null,null,null,null,null,null,null,null,null,null,null,null,null,{"$f":"SelectedEvidenceTable[[#This Row],[Attachments]]","v":0}]
[null,null,"x","x","x","x","x","x","x","x","x","x","x","x","x","x","x","x","x","x","x","x","x","x","x","x","x","x","x","x","x","x","x","x","x","x","x","x","x","x","x","x","x","x","x",null,null,null,{"$f":"IF(INDEX(INDIRECT(SelectedEvidenceTable[[#This Row],[Worksheet Name]]),1)=0,0,COUNTA(INDIRECT(SelectedEvidenceTable[[#This Row],[Worksheet Name]])))","v":0},"EV_MAC_Site_Induction","",null,null,"MAC Site Induction",null,null,null,null,null,null,null,null,null,null,null,null,null,null,null,null,{"$f":"SelectedEvidenceTable[[#This Row],[Attachments]]","v":0}]
[null,null,"x","x","x","x","x","x","x","x","x","x","x","x","x","x","x","x","x","x","x","x","x","x","x","x","x","x","x","x","x","x","x","x","x","x","x","x","x","x","x","x","x","x","x",null,null,null,{"$f":"IF(INDEX(INDIRECT(SelectedEvidenceTable[[#This Row],[Worksheet Name]]),1)=0,0,COUNTA(INDIRECT(SelectedEvidenceTable[[#This Row],[Worksheet Name]])))","v":0},"EV_MAC_Code_of_Conduct","",null,null,"MAC Code of Conduct",null,null,null,null,null,null,null,null,null,null,null,null,null,null,null,null,{"$f":"SelectedEvidenceTable[[#This Row],[Attachments]]","v":0}]
[null,null,"x","x","x","x",null,"x","x","x","x","x","x","x","x","x","x","x","x","x","x","x","x","x","x","x","x","x","x","x","x","x","x","x","x","x","x","x","x","x","x","x","x","x","x",null,null,null,{"$f":"IF(INDEX(INDIRECT(SelectedEvidenceTable[[#This Row],[Worksheet Name]]),1)=0,0,COUNTA(INDIRECT(SelectedEvidenceTable[[#This Row],[Worksheet Name]])))","v":0},"EV_Authorised_Isolation","",null,null,"Isolator.Qualified.Level1 - Basic Isolation",null,null,null,null,null,null,null,null,null,null,null,null,null,null,null,null,{"$f":"SelectedEvidenceTable[[#This Row],[Attachments]]","v":0}]
[null,null,"x","x","x","x","x","x","x","x","x","x","x","x","x","x","x","x","x","x","x","x","x","x","x","x","x","x","x","x","x","x","x","x","x","x","x","x","x","x","x","x","x","x","x",null,null,null,{"$f":"IF(INDEX(INDIRECT(SelectedEvidenceTable[[#This Row],[Worksheet Name]]),1)=0,0,COUNTA(INDIRECT(SelectedEvidenceTable[[#This Row],[Worksheet Name]])))","v":0},"EV_WAF","",null,null,"Work Area Familiarisation",null,null,null,null,null,null,null,null,null,null,null,null,null,null,null,null,{"$f":"SelectedEvidenceTable[[#This Row],[Attachments]]","v":0}]
[null,null,null,null,null,null,"x",null,null,null,"x",null,null,null,null,"x","x","x",null,null,null,null,null,null,null,null,null,null,"x","x",null,null,null,null,null,null,null,"x",null,null,null,null,null,null,null,null,null,null,{"$f":"IF(INDEX(INDIRECT(SelectedEvidenceTable[[#This Row],[Worksheet Name]]),1)=0,0,COUNTA(INDIRECT(SelectedEvidenceTable[[#This Row],[Worksheet Name]])))","v":0},"EV_High_Risk_Work","",null,null,"Licence to Perform High Risk Work",null,null,null,null,null,null,null,null,null,null,null,null,null,null,null,null,{"$f":"SelectedEvidenceTable[[#This Row],[Attachments]]","v":0}]
[null,null,null,null,null,null,"x",null,null,null,null,null,null,null,null,"x",null,null,"x","x","x","x","x","x","x","x","x","x","x",null,null,null,null,null,null,null,null,"x",null,null,null,null,null,null,null,null,null,null,{"$f":"IF(INDEX(INDIRECT(SelectedEvidenceTable[[#This Row],[Worksheet Name]]),1)=0,0,COUNTA(INDIRECT(SelectedEvidenceTable[[#This Row],[Worksheet Name]])))","v":0},"EV_MHV_License","",null,null,"Medium / Heavy Vehicle Australian License",null,null,null,null,null,null,null,null,null,null,null,null,null,null,null,null,{"$f":"SelectedEvidenceTable[[#This Row],[Attachments]]","v":0}]
[null,null,null,null,null,null,null,null,null,null,null,null,null,null,null,null,null,null,"x","x",null,"x",null,"x","x","x",null,"x",null,null,null,null,null,null,null,null,null,null,null,null,null,null,null,null,null,null,null,null,{"$f":"IF(INDEX(INDIRECT(SelectedEvidenceTable[[#This Row],[Worksheet Name]]),1)=0,0,COUNTA(INDIRECT(SelectedEvidenceTable[[#This Row],[Worksheet Name]])))","v":0},"EV_RII_Comp","",null,null,"Relevant RII Competency for Support Service Mine Vehicle",null,null,null,null,null,null,null,null,null,null,null,null,null,null,null,null,{"$f":"SelectedEvidenceTable[[#This Row],[Attachments]]","v":0}]
[null,null,null,null,null,null,null,null,null,null,null,null,null,null,null,null,null,null,null,null,"x",null,null,"x",null,null,"x",null,null,null,null,null,null,null,null,null,null,null,null,null,null,null,null,null,null,null,null,null,{"$f":"IF(INDEX(INDIRECT(SelectedEvidenceTable[[#This Row],[Worksheet Name]]),1)=0,0,COUNTA(INDIRECT(SelectedEvidenceTable[[#This Row],[Worksheet Name]])))","v":0},"EV_Relevant_Attachments","",null,null,"Relevant Assessment for Attachments",null,null,null,null,null,null,null,null,null,null,null,null,null,null,null,null,{"$f":"SelectedEvidenceTable[[#This Row],[Attachments]]","v":0}]
[null,null,null,null,null,null,null,null,null,null,null,null,null,null,null,null,null,null,null,null,null,null,null,"x",null,null,null,null,null,null,null,null,null,null,null,null,null,null,null,null,null,null,null,null,null,null,null,null,{"$f":"IF(INDEX(INDIRECT(SelectedEvidenceTable[[#This Row],[Worksheet Name]]),1)=0,0,COUNTA(INDIRECT(SelectedEvidenceTable[[#This Row],[Worksheet Name]])))","v":0},"EV_BHP_LV_Licence","",null,null,"BHP Light Vehicle Licence",null,null,null,null,null,null,null,null,null,null,null,null,null,null,null,null,{"$f":"SelectedEvidenceTable[[#This Row],[Attachments]]","v":0}]
[null,null,null,null,null,null,null,null,null,null,null,null,null,null,null,null,null,null,null,null,null,null,null,null,null,null,null,null,null,null,null,null,null,null,null,null,null,null,null,null,null,null,null,null,null,null,null,null,{"$f":"IF(INDEX(INDIRECT(SelectedEvidenceTable[[#This Row],[Worksheet Name]]),1)=0,0,COUNTA(INDIRECT(SelectedEvidenceTable[[#This Row],[Worksheet Name]])))","v":0},"EV_Other","",null,null,"Other",null,null,null,null,null,null,null,null,null,null,null,null,null,null,null,null,{"$f":"SelectedEvidenceTable[[#This Row],[Attachments]]","v":0}]
[null,null,null,null,null,null,"x",null,null,null,"x",null,null,null,null,"x","x","x",null,null,null,null,null,null,null,null,null,null,"x","x",null,null,null,null,null,null,null,"x",null,null,null,null,null,null,null,null,null,null,{"$f":"IF(INDEX(INDIRECT(SelectedEvidenceTable[[#This Row],[Worksheet Name]]),1)=0,0,COUNTA(INDIRECT(SelectedEvidenceTable[[#This Row],[Worksheet Name]])))","v":0},"EV_Barricading","",null,null,"Barricading - MAC Assessment",null,null,null,null,null,null,null,null,null,null,null,null,null,null,null,null,{"$f":"SelectedEvidenceTable[[#This Row],[Attachments]]","v":0}]
[null,null,null,null,null,null,"x",null,null,null,"x",null,null,null,null,null,null,null,null,null,null,null,null,null,null,null,null,null,null,null,null,null,null,null,null,null,null,null,null,null,null,null,null,null,null,null,null,null,{"$f":"IF(INDEX(INDIRECT(SelectedEvidenceTable[[#This Row],[Worksheet Name]]),1)=0,0,COUNTA(INDIRECT(SelectedEvidenceTable[[#This Row],[Worksheet Name]])))","v":0},"EV_Working_at_Heights","",null,null,"Working at Heights - MAC Assessment",null,null,null,null,null,null,null,null,null,null,null,null,null,null,null,null,{"$f":"SelectedEvidenceTable[[#This Row],[Attachments]]","v":0}]
[null,null,null,null,null,null,"x",null,null,null,"x",null,null,null,null,null,null,null,null,null,null,null,null,null,null,null,null,null,null,null,null,null,null,null,null,null,null,null,null,null,null,null,null,null,null,null,null,null,{"$f":"IF(INDEX(INDIRECT(SelectedEvidenceTable[[#This Row],[Worksheet Name]]),1)=0,0,COUNTA(INDIRECT(SelectedEvidenceTable[[#This Row],[Worksheet Name]])))","v":0},"EV_SOA_WAH","",null,null,"SOA Working at Heights RIIWHS204",null,null,null,null,null,null,null,null,null,null,null,null,null,null,null,null,{"$f":"SelectedEvidenceTable[[#This Row],[Attachments]]","v":0}]
[null,null,null,null,null,null,null,null,null,null,null,null,null,null,null,"x","x","x",null,null,null,null,null,null,null,null,null,null,"x","x",null,null,null,null,null,null,null,"x",null,null,null,null,null,null,null,null,null,null,{"$f":"IF(INDEX(INDIRECT(SelectedEvidenceTable[[#This Row],[Worksheet Name]]),1)=0,0,COUNTA(INDIRECT(SelectedEvidenceTable[[#This Row],[Worksheet Name]])))","v":0},"EV_Lifting","",null,null,"Lifting - MAC Assessment",null,null,null,null,null,null,null,null,null,null,null,null,null,null,null,null,{"$f":"SelectedEvidenceTable[[#This Row],[Attachments]]","v":0}]
[null,null,null,null,null,null,null,null,null,null,null,null,null,null,null,null,null,null,null,null,null,"x",null,null,null,null,null,null,null,null,null,null,null,null,null,null,null,null,null,null,null,null,null,null,null,null,null,null,{"$f":"IF(INDEX(INDIRECT(SelectedEvidenceTable[[#This Row],[Worksheet Name]]),1)=0,0,COUNTA(INDIRECT(SelectedEvidenceTable[[#This Row],[Worksheet Name]])))","v":0},"EV_MMU","",null,null,"Relevant Assessed Shotfiring Procedures",null,null,null,null,null,null,null,null,null,null,null,null,null,null,null,null,{"$f":"SelectedEvidenceTable[[#This Row],[Attachments]]","v":0}]
[null,null,null,null,null,null,"x",null,"x",null,"x",null,null,null,null,"x","x","x",null,null,null,null,null,null,null,null,null,null,"x","x",null,null,null,null,null,null,null,"x",null,null,null,null,null,null,null,null,null,null,{"$f":"IF(INDEX(INDIRECT(SelectedEvidenceTable[[#This Row],[Worksheet Name]]),1)=0,0,COUNTA(INDIRECT(SelectedEvidenceTable[[#This Row],[Worksheet Name]])))","v":0},"EV_CCA","",null,null,"Company Competency Assessment",null,null,null,null,null,null,null,null,null,null,null,null,null,null,null,null,{"$f":"SelectedEvidenceTable[[#This Row],[Attachments]]","v":0}]
[null,null,null,null,null,null,null,null,null,null,null,null,null,null,null,null,null,null,null,null,null,null,null,null,null,null,null,null,null,null,null,null,null,null,null,null,null,null,null,null,null,null,null,null,null,null,null,null,{"$f":"IF(INDEX(INDIRECT(SelectedEvidenceTable[[#This Row],[Worksheet Name]]),1)=0,0,COUNTA(INDIRECT(SelectedEvidenceTable[[#This Row],[Worksheet Name]])))","v":0},"EV_CERT_II_Drill_Ops","",null,null,"Certificate II or III Drilling Operations",null,null,null,null,null,null,null,null,null,null,null,null,null,null,null,null,{"$f":"SelectedEvidenceTable[[#This Row],[Attachments]]","v":0}]
[null,null,null,null,null,null,null,null,null,null,null,null,null,null,null,null,null,null,null,null,null,null,null,null,null,null,null,null,null,null,null,null,null,null,null,null,null,null,null,null,null,null,null,null,null,null,null,null,{"$f":"IF(INDEX(INDIRECT(SelectedEvidenceTable[[#This Row],[Worksheet Name]]),1)=0,0,COUNTA(INDIRECT(SelectedEvidenceTable[[#This Row],[Worksheet Name]])))","v":0},"EV_CERT_III_Drill_Ops","",null,null,"Certificate III or IV Drilling Operations",null,null,null,null,null,null,null,null,null,null,null,null,null,null,null,null,{"$f":"SelectedEvidenceTable[[#This Row],[Attachments]]","v":0}]
[null,null,null,null,null,null,null,null,null,null,null,null,null,null,null,null,null,null,null,null,null,null,null,null,null,null,null,null,null,null,null,null,null,null,null,null,null,null,null,null,null,null,null,null,null,null,null,null,{"$f":"IF(INDEX(INDIRECT(SelectedEvidenceTable[[#This Row],[Worksheet Name]]),1)=0,0,COUNTA(INDIRECT(SelectedEvidenceTable[[#This Row],[Worksheet Name]])))","v":0},"EV_CERT_IV_Drill_Ops","",null,null,"Certificate IV Drilling Operations or Minerals Exploration",null,null,null,null,null,null,null,null,null,null,null,null,null,null,null,null,{"$f":"SelectedEvidenceTable[[#This Row],[Attachments]]","v":0}]
[null,null,null,null,null,null,null,null,null,null,null,null,null,null,null,null,null,null,null,null,null,null,null,null,null,null,null,null,null,null,null,null,null,null,null,null,null,null,null,null,null,null,null,null,null,null,null,null,{"$f":"IF(INDEX(INDIRECT(SelectedEvidenceTable[[#This Row],[Worksheet Name]]),1)=0,0,COUNTA(INDIRECT(SelectedEvidenceTable[[#This Row],[Worksheet Name]])))","v":0},"EV_Driller_Group","",null,null,"Driller Certificates ",null,null,null,null,null,null,null,null,null,null,null,null,null,null,null,null,{"$f":"SelectedEvidenceTable[[#This Row],[Attachments]]","v":0}]
[null,null,null,null,null,null,null,null,null,null,null,null,null,null,null,null,null,null,null,null,null,null,null,null,null,null,null,null,null,null,null,null,null,null,null,null,null,null,null,null,null,null,null,null,null,null,null,null,{"$f":"IF(INDEX(INDIRECT(SelectedEvidenceTable[[#This Row],[Worksheet Name]]),1)=0,0,COUNTA(INDIRECT(SelectedEvidenceTable[[#This Row],[Worksheet Name]])))","v":0},"EV_Water_Bore_Drill","",null,null,"Water Bore Drillers Licences",null,null,null,null,null,null,null,null,null,null,null,null,null,null,null,null,{"$f":"SelectedEvidenceTable[[#This Row],[Attachments]]","v":0}]
[null,null,null,null,null,null,null,null,null,null,null,null,null,null,null,null,null,null,null,null,null,null,null,null,null,null,null,null,null,null,null,null,null,null,null,null,null,null,null,null,null,null,null,null,null,null,null,null,{"$f":"IF(INDEX(INDIRECT(SelectedEvidenceTable[[#This Row],[Worksheet Name]]),1)=0,0,COUNTA(INDIRECT(SelectedEvidenceTable[[#This Row],[Worksheet Name]])))","v":0},"EV_Driller_RIIOGD205","",null,null,"RIIOGD205 Support Blow Out Prevention Operations",null,null,null,null,null,null,null,null,null,null,null,null,null,null,null,null,{"$f":"SelectedEvidenceTable[[#This Row],[Attachments]]","v":0}]
[null,null,null,null,null,null,null,null,null,null,null,null,null,null,null,null,null,null,null,null,null,null,null,null,null,null,null,null,null,null,null,null,null,null,null,null,null,null,null,null,null,null,null,null,null,null,null,null,{"$f":"IF(INDEX(INDIRECT(SelectedEvidenceTable[[#This Row],[Worksheet Name]]),1)=0,0,COUNTA(INDIRECT(SelectedEvidenceTable[[#This Row],[Worksheet Name]])))","v":0},"EV_Driller_RIIOGD206","",null,null,"RIIODG206 Assist Coal Seam Gas Control",null,null,null,null,null,null,null,null,null,null,null,null,null,null,null,null,{"$f":"SelectedEvidenceTable[[#This Row],[Attachments]]","v":0}]
[null,null,null,null,null,null,null,null,null,null,null,null,null,null,null,null,null,null,null,null,null,null,null,null,null,null,null,null,null,null,null,null,null,null,null,null,null,null,null,null,null,null,null,null,null,null,null,null,{"$f":"IF(INDEX(INDIRECT(SelectedEvidenceTable[[#This Row],[Worksheet Name]]),1)=0,0,COUNTA(INDIRECT(SelectedEvidenceTable[[#This Row],[Worksheet Name]])))","v":0},"EV_Driller_RIIOGD304","",null,null,"RIIOGD304 Apply Effective Coal Seam Gas Control Practices",null,null,null,null,null,null,null,null,null,null,null,null,null,null,null,null,{"$f":"SelectedEvidenceTable[[#This Row],[Attachments]]","v":0}]
[null,null,null,null,null,null,null,null,null,null,null,null,null,null,null,null,null,null,null,null,null,null,null,null,null,null,null,null,null,null,null,null,null,null,null,null,null,null,null,null,null,null,null,null,null,null,null,null,{"$f":"IF(INDEX(INDIRECT(SelectedEvidenceTable[[#This Row],[Worksheet Name]]),1)=0,0,COUNTA(INDIRECT(SelectedEvidenceTable[[#This Row],[Worksheet Name]])))","v":0},"EV_Driller_RIIOGD305","",null,null,"RIIOGD305 Apply Blow Out Prevention Operation Procedures",null,null,null,null,null,null,null,null,null,null,null,null,null,null,null,null,{"$f":"SelectedEvidenceTable[[#This Row],[Attachments]]","v":0}]
[null,null,null,null,null,null,null,null,null,null,null,null,null,null,null,null,null,null,null,null,null,null,null,null,null,null,null,null,null,null,null,null,null,null,null,null,null,null,null,null,null,null,null,null,null,null,null,null,{"$f":"IF(INDEX(INDIRECT(SelectedEvidenceTable[[#This Row],[Worksheet Name]]),1)=0,0,COUNTA(INDIRECT(SelectedEvidenceTable[[#This Row],[Worksheet Name]])))","v":0},"EV_Driller_RIIOGD402","",null,null,"RIIOGD402 Participate in nippling-up and pressure test",null,null,null,null,null,null,null,null,null,null,null,null,null,null,null,null,{"$f":"SelectedEvidenceTable[[#This Row],[Attachments]]","v":0}]
[null,null,null,null,null,null,null,null,null,null,null,null,null,null,null,null,null,null,null,null,null,null,null,null,null,null,null,null,null,null,null,null,null,null,null,null,null,null,null,null,null,null,null,null,null,null,null,null,{"$f":"IF(INDEX(INDIRECT(SelectedEvidenceTable[[#This Row],[Worksheet Name]]),1)=0,0,COUNTA(INDIRECT(SelectedEvidenceTable[[#This Row],[Worksheet Name]])))","v":0},"EV_Driller_RIIOGD405","",null,null,"RIIOGD405 Carry Out Well Control and Blow Out Prevention",null,null,null,null,null,null,null,null,null,null,null,null,null,null,null,null,{"$f":"SelectedEvidenceTable[[#This Row],[Attachments]]","v":0}]
[null,null,null,null,null,null,null,null,null,null,null,null,null,null,null,null,null,null,null,null,null,null,null,null,null,null,null,null,null,null,null,null,null,null,null,null,null,null,null,null,null,null,null,null,null,null,null,null,{"$f":"IF(INDEX(INDIRECT(SelectedEvidenceTable[[#This Row],[Worksheet Name]]),1)=0,0,COUNTA(INDIRECT(SelectedEvidenceTable[[#This Row],[Worksheet Name]])))","v":0},"EV_Driller_LtrEndorse","",null,null,"Water Bore Drillers Licence - Letter of Endorsement",null,null,null,null,null,null,null,null,null,null,null,null,null,null,null,null,{"$f":"SelectedEvidenceTable[[#This Row],[Attachments]]","v":0}]
[null,null,"x","x","x",null,null,null,"x","x","x","x","x","x","x",null,null,null,"x",null,null,"x",null,"x","x","x","x","x",null,null,null,null,null,"x","x","x","x",null,null,null,"x",null,null,null,"x",null,null,null,{"$f":"IF(INDEX(INDIRECT(SelectedEvidenceTable[[#This Row],[Worksheet Name]]),1)=0,0,COUNTA(INDIRECT(SelectedEvidenceTable[[#This Row],[Worksheet Name]])))","v":0},"EV_Machine_Specific","",null,null,"Machine Specific Familiarisation OR Machine Specific Challenge Test",null,null,null,null,null,null,null,null,null,null,null,null,null,null,null,null,{"$f":"SelectedEvidenceTable[[#This Row],[Attachments]]","v":0}]
[null,null,null,null,null,null,null,null,null,null,null,null,null,null,null,null,null,null,null,null,null,null,null,null,null,null,null,null,null,null,"x",null,null,null,null,null,null,null,null,null,null,null,null,null,null,null,null,null,{"$f":"IF(INDEX(INDIRECT(SelectedEvidenceTable[[#This Row],[Worksheet Name]]),1)=0,0,COUNTA(INDIRECT(SelectedEvidenceTable[[#This Row],[Worksheet Name]])))","v":0},"EV_Pressure_Jetting_A","",null,null,"Pressure Jetting Class A - Statement of Attainment/Competency",null,null,null,null,null,null,null,null,null,null,null,null,null,null,null,null,{"$f":"SelectedEvidenceTable[[#This Row],[Attachments]]","v":0}]
[null,null,null,null,null,null,null,null,null,null,null,null,null,null,null,null,null,null,null,null,null,null,null,null,null,null,null,null,null,null,null,"x",null,null,null,null,null,null,null,null,null,null,null,null,null,null,null,null,{"$f":"IF(INDEX(INDIRECT(SelectedEvidenceTable[[#This Row],[Worksheet Name]]),1)=0,0,COUNTA(INDIRECT(SelectedEvidenceTable[[#This Row],[Worksheet Name]])))","v":0},"EV_Pressure_Jetting_B","",null,null,"Pressure Jetting Class B - Statement of Attainment/Competency",null,null,null,null,null,null,null,null,null,null,null,null,null,null,null,null,{"$f":"SelectedEvidenceTable[[#This Row],[Attachments]]","v":0}]
[null,null,null,null,null,null,null,null,null,null,null,null,null,null,null,null,null,null,null,null,null,null,null,null,null,null,null,null,null,null,null,null,null,null,null,null,null,null,null,null,null,null,null,null,null,null,null,null,{"$f":"IF(INDEX(INDIRECT(SelectedEvidenceTable[[#This Row],[Worksheet Name]]),1)=0,0,COUNTA(INDIRECT(SelectedEvidenceTable[[#This Row],[Worksheet Name]])))","v":0},"EV_Missing_Equip","",null,null,"Update To Form Required"]
[]
[null,null,null,null,null,null,null,null,null,null,null,null,null,null,null,null,null,null,null,null,null,null,null,null,null,null,null,null,null,null,null,null,null,null,null,null,null,null,null,null,null,null,null,null,null,null,null,null,null,null,null,null,null,"Section 4 - Mandatory Reading"]
[null,null,null,null,null,null,null,null,null,null,null,null,null,null,null,null,null,null,null,null,null,null,null,null,null,null,null,null,null,null,null,null,null,null,null,null,null,null,null,null,null,null,null,null,null,null,null,null,null,null,null,null,null,"Mandatory Reading - Click 'Display Document' to display each mandatory reading file."]
[null,null,null,null,null,null,null,null,null,null,null,null,null,null,null,null,null,null,null,null,null,null,null,null,null,null,null,null,null,null,null,null,null,null,null,null,null,null,null,null,null,null,null,null,null,null,null,null,"Read","Worksheet Name","Selected",null,null,null,null,null,null,null,null,null,null,null,null,"Document Read"]
[null,null,null,null,null,null,null,null,null,null,null,null,null,null,null,null,null,null,null,null,null,null,null,null,null,null,null,null,null,null,null,null,null,null,null,null,null,null,null,null,null,null,null,null,null,null,null,null,null,"MD_MAC-STE-GDE-007",{"$f":"IF(COUNTIFS($B$11:$AU$11,\"X\",$B53:$AU53,\"x\")>=1,\"x\",\"\")","v":""},null,null,"No Mandatory Reading Required"]
[null,null,"x","x","x","x","x",null,"x","x","x","x","x","x","x","x","x","x","x","x","x","x","x","x","x","x","x","x","x","x",null,null,"x","x","x","x","x","x","x","x","x","x","x","x","x",null,null,null,null,"MD_MAC-STE-GDE-007","",null,null,"MAC-STE-MTP-027 Traffic Management",null,null,null,null,null,null,null,null,null,{"$f":"IF($AW54=\"Y\",\"Yes\",\"No\")","v":"No"}]
[null,null,"x","x","x","x","x","x","x","x","x","x","x","x","x","x","x","x","x","x","x","x","x","x","x","x","x","x","x","x",null,null,"x","x","x","x","x","x","x","x",null,"x","x","x","x",null,null,null,null,"MD_MAC-STE-GDE-007","",null,null,"MAC-STE-PRO-004 Emergency Procedure",null,null,null,null,null,null,null,null,null,"No"]
[null,null,null,null,null,null,null,null,null,null,null,null,null,null,null,null,null,null,null,null,null,null,null,null,null,null,null,null,null,null,null,null,null,null,null,null,null,null,null,null,null,null,null,null,null,null,null,null,null,"MD_MAC-STE-GDE-007","",null,null,"MAC-ENC-PRO-029 Spill Response",null,null,null,null,null,null,null,null,null,"No"]
[null,null,"x","x","x","x","x","x","x","x","x","x","x","x","x","x","x","x","x","x","x","x","x","x","x","x","x","x","x","x",null,null,"x","x","x","x","x","x","x","x",null,"x","x","x","x",null,null,null,null,"MD_MAC-STE-GDE-007","",null,null,"MAC-STE-PRO-024 60 Sceonds for safety and JSA procedures",null,null,null,null,null,null,null,null,null,"No"]
[null,null,"x","x","x","x",null,null,null,null,null,"x","x","x","x",null,null,null,"x","x","x","x","x","x","x","x","x","x",null,null,null,null,"x","x","x","x","x",null,"x","x",null,"x","x","x",null,null,null,null,null,"MD_MAC-STE-GDE-007","",null,null,"MAC-PRD-PRO-079 In Pit Mobile Equipment Breakdown Prcedures",null,null,null,null,null,null,null,null,null,"No"]
[null,null,"x","x","x","x",null,null,null,null,null,"x","x","x","x",null,null,null,"x","x","x","x","x","x","x","x","x","x",null,null,null,null,"x","x","x","x","x",null,"x","x",null,"x","x","x",null,null,null,null,null,"MD_MAC-STE-GDE-007","",null,null,"MAC-PRD-PRO-051 Recovery Procedure For Mobile Plant",null,null,null,null,null,null,null,null,null,"No"]
[null,null,"x","x",null,null,null,null,null,null,null,"x",null,null,"x",null,null,null,null,null,null,null,null,null,null,null,null,null,null,null,null,null,"x","x","x",null,null,null,"x",null,null,null,"x",null,null,null,null,null,null,"MD_MAC-STE-GDE-007","",null,null,"MAC-PRD-STD-003 Dump Standard",null,null,null,null,null,null,null,null,null,"No"]
[null,null,null,"x",null,null,null,null,null,null,null,null,null,null,"x",null,null,null,null,null,null,null,null,null,null,null,null,null,null,null,null,null,"x","x","x",null,null,null,null,null,null,"x",null,null,null,null,null,null,null,"MD_MAC-STE-GDE-007","",null,null,"MAC-PRD-PRO-120 Procedure for Watering Haul Roads",null,null,null,null,null,null,null,null,null,"No"]
[null,null,"x","x","x","x",null,null,null,"x",null,"x","x","x","x",null,null,null,"x","x","x","x","x","x","x","x","x","x",null,null,null,null,"x","x","x","x","x",null,"x","x",null,"x","x","x",null,null,null,null,null,"MD_MAC-STE-GDE-007","",null,null,"MAC-STE-STD-149 Working Near Slopes and Crests",null,null,null,null,null,null,null,null,null,"No"]
[null,null,null,null,null,"x",null,null,null,null,null,null,null,null,null,null,null,null,null,null,null,null,null,null,null,null,null,null,null,null,null,null,null,null,null,null,null,null,null,null,null,null,null,null,null,null,null,null,null,"MD_MAC-STE-GDE-007","",null,null,"MAC-PRD-FRM-039 Drill & Blast Bench Checklist",null,null,null,null,null,null,null,null,null,"No"]
[null,null,null,null,null,null,null,null,null,null,null,null,null,null,null,null,null,null,null,null,null,null,null,null,null,null,null,null,null,null,null,null,null,null,null,null,null,null,null,"x",null,null,"x",null,null,null,null,null,null,"MD_MAC-STE-GDE-007","",null,null,"MAC-PRD-PR0-066 Dozers working in Hot areas",null,null,null,null,null,null,null,null,null,"No"]
[null,null,"x","x",null,null,null,null,null,null,null,null,null,null,null,null,null,null,null,null,null,null,null,null,null,null,null,null,null,null,null,null,"x",null,"x",null,null,null,"x",null,null,"x","x",null,null,null,null,null,null,"MD_MAC-STE-GDE-007","",null,null,"MAC-STE-PRO-008 Hazardous Tyre Procedure",null,null,null,null,null,null,null,null,null,"No"]
[null,null,null,null,null,null,null,null,"x",null,null,"x",null,null,null,null,null,null,null,null,null,null,null,null,null,null,null,null,null,null,null,null,null,null,null,null,null,null,null,null,null,null,null,null,null,null,null,null,null,"MD_MAC-STE-GDE-007","",null,null,"MAC-PRD-PRO-035 Handling Misfires",null,null,null,null,null,null,null,null,null,"No"]
[null,null,null,null,null,null,null,null,null,null,null,null,null,null,"x",null,null,null,null,null,null,null,null,null,null,null,null,null,null,null,null,null,"x",null,"x",null,null,null,"x",null,null,null,"x","x",null,null,null,null,null,"MD_MAC-STE-GDE-007","",null,null,"MAC-PRD-PRO-089 Auxiliary equipment working around shovels",null,null,null,null,null,null,null,null,null,"No"]
[null,null,null,null,"x",null,null,null,"Y","Y",null,null,null,null,"x",null,null,null,null,null,null,null,null,null,null,null,null,null,null,null,null,null,null,null,null,"x",null,"Y",null,"Y",null,null,null,"x",null,null,null,null,null,"MD_MAC-STE-GDE-007","",null,null,"MAC-PRD-PRO-100 Clean up spillage under the Reject Bin",null,null,null,null,null,null,null,null,null,"No"]
[null,null,null,null,null,null,null,null,"x",null,null,null,null,null,null,null,null,null,null,null,null,null,null,null,null,null,null,null,null,null,null,null,null,null,null,null,null,null,null,null,null,null,null,null,null,null,null,null,null,"MD_MAC-STE-GDE-007","",null,null,"MAC-PRD-PRO-130 Bit Change and Bit Sub Change on a Reedrill Drill",null,null,null,null,null,null,null,null,null,"No"]
[null,null,null,null,null,"x",null,null,null,null,null,null,null,null,null,null,null,null,null,null,null,null,null,null,null,null,null,null,null,null,null,null,null,null,null,null,null,null,null,null,null,null,null,null,null,null,null,null,null,"MD_MAC-STE-GDE-007","",null,null,"MAC-PRD-PRO-131 Loading and Retrieving Lead Rods in Cased Holes",null,null,null,null,null,null,null,null,null,"No"]
[null,null,null,null,null,"x",null,null,"x",null,null,null,null,null,null,null,null,null,null,null,null,null,null,null,null,null,null,null,null,null,null,null,null,null,null,null,null,null,null,null,null,null,null,null,null,null,null,null,null,"MD_MAC-STE-GDE-007","",null,null,"MAC-PRD-PRO-054 Procedure to Move Excavators and Drills on 701 Towhaul Float",null,null,null,null,null,null,null,null,null,"No"]
[null,null,null,null,null,"x",null,null,"x",null,null,null,null,null,null,null,null,null,null,null,null,null,null,null,null,null,null,null,null,null,null,null,null,null,null,null,null,null,null,null,null,null,null,null,null,null,null,null,null,"MD_MAC-STE-GDE-007","",null,null,"MAC-PRD-PRO-133 Drilling Operations and General Duties",null,null,null,null,null,null,null,null,null,"No"]
[null,null,null,null,null,null,null,null,null,null,null,null,null,null,null,null,null,null,null,null,null,null,null,null,null,null,null,null,null,null,null,null,null,null,null,null,null,null,null,null,null,null,null,null,null,null,null,null,null,"MD_MAC-STE-GDE-007","",null,null,"MAC-PRD-PRO-135 General Use of Vehicle Loading Crane",null,null,null,null,null,null,null,null,null,"No"]
[null,null,null,null,null,null,null,null,null,null,null,null,null,null,null,null,null,null,null,null,null,null,null,null,null,null,null,null,null,null,null,null,null,null,null,null,null,null,"x",null,null,null,"x",null,null,null,null,null,null,"MD_MAC-STE-GDE-007","",null,null,"MAC-PRD-STD-008 Sump Standard",null,null,null,null,null,null,null,null,null,"No"]
[null,null,null,null,null,"x",null,null,null,null,null,null,null,null,"x",null,null,null,null,null,null,null,null,null,null,null,null,null,null,null,null,null,null,null,null,null,null,null,"x",null,null,null,"x",null,null,null,null,null,null,"MD_MAC-STE-GDE-007","",null,null,"MAC-PRD-STD-009 Drill bench prep",null,null,null,null,null,null,null,null,null,"No"]
[null,null,null,null,null,null,null,null,null,null,null,null,null,null,null,null,null,null,null,null,null,null,null,null,null,null,null,null,null,null,null,null,null,null,null,null,null,null,"x",null,null,null,"x",null,null,null,null,null,null,"MD_MAC-STE-GDE-007","",null,null,"MAC-PRD-WIN-004 Wet Weather Recovery - Dozer",null,null,null,null,null,null,null,null,null,"No"]
[null,null,null,null,null,null,null,null,null,null,null,null,null,null,null,null,null,null,null,null,null,null,null,null,null,null,null,null,null,null,null,null,null,null,null,null,null,null,null,null,null,null,null,"x",null,null,null,null,null,"MD_MAC-STE-GDE-007","",null,null,"MAC-PRD-WIN-005 Wet Weather Recovery - Loader",null,null,null,null,null,null,null,null,null,"No"]
[null,null,null,null,null,null,null,null,null,null,null,null,null,null,"x",null,null,null,null,null,null,null,null,null,null,null,null,null,null,null,null,null,null,null,null,null,null,null,null,null,null,null,null,null,null,null,null,null,null,"MD_MAC-STE-GDE-007","",null,null,"MAC-PRD-WIN-007 Wet Weather Preparation and Recovery Grader",null,null,null,null,null,null,null,null,null,"No"]
[null,null,null,null,null,null,null,null,null,null,null,null,null,null,null,null,null,null,null,null,null,null,null,null,null,null,null,null,null,null,null,null,null,null,"x",null,null,null,null,null,null,null,null,null,null,null,null,null,null,"MD_MAC-STE-GDE-007","",null,null,"MAC-PRD-WIN-008 Wet Weather Preparation and Recovery Scraper",null,null,null,null,null,null,null,null,null,"No"]
[null,null,null,null,null,null,null,null,null,null,null,null,null,null,null,null,null,null,null,null,null,null,null,null,null,null,null,null,null,null,null,null,null,null,null,null,null,null,null,null,null,null,null,null,null,null,null,null,null,"MD_MAC-STE-GDE-007","",null,null,"MAC-STE-PRO-031 Fatigue Risk Management Procedure",null,null,null,null,null,null,null,null,null,"No"]
[null,null,null,null,"x",null,null,null,null,null,null,"x",null,null,"x",null,null,null,null,null,null,null,null,null,null,null,null,null,null,null,null,null,null,"x","x",null,null,null,"x",null,null,null,"x",null,null,null,null,null,null,"MD_MAC-STE-GDE-007","",null,null,"MAC-STE-STD-002 Mine Haul Road Standard",null,null,null,null,null,null,null,null,null,"No"]
[null,null,null,null,null,null,null,null,null,"x",null,"x",null,null,"x",null,null,null,null,null,null,null,null,null,null,null,null,null,null,null,null,null,"x",null,"x",null,null,null,"x",null,null,null,"x","x",null,null,null,null,null,"MD_MAC-STE-GDE-007","",null,null,"MAC-PRD-PRO-065 working near excavators",null,null,null,null,null,null,null,null,null,"No"]
[null,null,null,null,null,null,null,null,null,null,null,null,null,null,null,null,null,null,null,null,null,null,null,null,null,null,null,null,null,null,null,null,null,null,null,null,null,null,null,null,null,null,null,null,null,null,null,null,null,"MD_MAC-STE-GDE-007","",null,null,"MAC-PRD-FRM-004 Drill Log Sheet",null,null,null,null,null,null,null,null,null,"No"]
[null,null,null,null,null,null,null,null,null,null,null,"x",null,null,null,null,null,null,null,null,null,null,null,null,null,null,null,null,null,null,null,null,null,null,null,null,null,null,null,null,null,null,null,null,null,null,null,null,null,"MD_MAC-STE-GDE-007","",null,null,"SWI-011 Excavator - Tramming & Overhead Clearance  ",null,null,null,null,null,null,null,null,null,"No"]
[null,null,null,null,null,null,null,null,null,"x",null,null,null,null,null,null,null,null,null,null,null,null,null,null,null,null,null,null,null,null,null,null,null,null,null,null,null,null,null,"x",null,null,null,null,null,null,null,null,null,"MD_MAC-STE-GDE-007","",null,null,"MAC-MEC-PRO-016 Procedure for Replacing Ground Engaging Toolst",null,null,null,null,null,null,null,null,null,{"$f":"IF($AW85=\"Y\",\"Yes\",\"No\")","v":"No"}]
[null,null,null,null,null,null,null,null,null,"x",null,null,null,null,null,null,null,null,null,null,null,null,null,null,null,null,null,null,null,null,null,null,null,null,null,null,null,null,null,"x",null,null,null,null,null,null,null,null,null,"MD_MAC-STE-GDE-007","",null,null,"MAC-STE-REG-015 Restricted and Banned Tools, Equipment and Activities",null,null,null,null,null,null,null,null,null,"No"]
[null,null,null,null,null,null,null,null,null,null,null,null,null,null,null,null,null,null,null,null,null,null,null,null,null,null,null,null,null,null,null,null,null,null,null,null,null,null,null,"x",null,null,null,null,null,null,null,null,null,"MD_MAC-STE-GDE-007","",null,null,"MAC-ENC-PRO-012 Land Management",null,null,null,null,null,null,null,null,null,"No"]
[null,null,null,null,null,null,null,null,null,null,null,null,null,null,null,null,null,null,null,null,null,null,null,null,null,null,null,null,null,null,"x","x",null,null,null,null,null,null,null,null,null,null,null,null,null,null,null,null,null,"MD_MAC-STE-GDE-007","",null,null,"MAC-STE-STD-144 Managing Risks from High Pressure Jetting",null,null,null,null,null,null,null,null,null,"No"]
[null,null,null,null,null,null,null,null,null,null,null,null,null,null,null,null,null,null,null,null,null,null,null,null,null,null,null,null,null,null,"x","x",null,null,null,null,null,null,null,null,null,null,null,null,null,null,null,null,null,"MD_MAC-STE-GDE-007","",null,null,"MAC-STE-FRM-245 Pre Use Inspection Water Pressure Jetters",null,null,null,null,null,null,null,null,null,"No"]
[null,null,null,null,null,null,null,null,null,null,null,null,null,null,null,null,null,null,null,null,null,null,null,null,null,null,null,null,null,null,"x","x",null,null,null,null,null,null,null,null,null,null,null,null,null,null,null,null,null,"MD_MAC-STE-GDE-007","",null,null,"MAC-STE-PRO-072 Action in the event of suspected fluid injections",null,null,null,null,null,null,null,null,null,"No"]
[null,null,null,null,null,null,null,null,null,null,null,null,null,null,null,null,null,null,null,null,null,null,null,null,null,null,null,null,null,null,null,null,null,null,null,null,null,null,null,null,"x",null,null,null,null,null,null,null,null,"MD_MAC-STE-GDE-007","",null,null,"MAC-STE-TRN-274 Workshop Traffic Management Plan Assessment",null,null,null,null,null,null,null,null,null,"No"]
[null,null,null,null,null,null,null,null,null,null,null,null,null,null,null,null,null,null,null,null,null,null,null,null,null,null,null,null,null,null,null,null,null,null,null,null,null,null,null,null,"x",null,null,null,null,null,null,null,null,"MD_MAC-STE-GDE-007","",null,null,"MAC-STE-PRO-082 Manual Handling",null,null,null,null,null,null,null,null,null,"No"]
[null,null,null,null,null,null,null,null,null,null,null,null,null,null,null,null,null,null,null,null,null,null,null,null,null,null,null,null,null,null,null,null,null,null,null,null,null,null,null,null,null,null,null,null,null,null,null,null,null,"MD_MAC-STE-GDE-007","",null,null,"MAC-",null,null,null,null,null,null,null,null,null,{"$f":"IF($AW93=\"Y\",\"Yes\",\"No\")","v":"No"}]
[]
[null,null,null,null,null,null,null,null,null,null,null,null,null,null,null,null,null,null,null,null,null,null,null,null,null,null,null,null,null,null,null,null,null,null,null,null,null,null,null,null,null,null,null,null,null,null,null,null,null,null,null,null,null,"Section 5 - Contractor Sign-off"]
[null,null,null,null,null,null,null,null,null,null,null,null,null,null,null,null,null,null,null,null,null,null,null,null,null,null,null,null,null,null,null,null,null,null,null,null,null,null,null,null,null,null,null,null,null,null,null,null,null,null,null,null,null,"CONTRACT EQUIPMENT OPERATOR"]
[null,null,null,null,null,null,null,null,null,null,null,null,null,null,null,null,null,null,null,null,null,null,null,null,null,null,null,null,null,null,null,null,null,null,null,null,null,null,null,null,null,null,null,null,null,null,null,null,null,null,null,null,null,"I confirm that the details provided are an accurate reflection of my knowledge and experience and that I have provided all required evidence and have read all mandatory reading documents.\n\nI also acknowledge that where I am required to work in additional areas, I will consult my Line Supervisor to ensure adequate training provisions have been met in accordance with Site requirements."]
[null,null,null,null,null,null,null,null,null,null,null,null,null,null,null,null,null,null,null,null,null,null,null,null,null,null,null,null,null,null,null,null,null,null,null,null,null,null,null,null,null,null,null,null,null,null,null,null,null,null,null,null,null,"Name",null,null,null,null,null,null,null,null,null,"Date",null,null,null,"Signature"]
[]
[]
[null,null,null,null,null,null,null,null,null,null,null,null,null,null,null,null,null,null,null,null,null,null,null,null,null,null,null,null,null,null,null,null,null,null,null,null,null,null,null,null,null,null,null,null,null,null,null,null,{"$f":"IF(INDEX(INDIRECT(CoverSheetName),1)=0,0,COUNTA(INDIRECT(CoverSheetName)))","v":0},"EV_Cover_Sheet"]

{"sheet":"EV_Cover_Sheet","index":1,"n_rows":17,"n_cols":2,"rows_kept":17,"cut":false,"hidden":true,"merged":[]}
[null,"Cover Sheet Attachment"]
[]
[]
[null,"Attached Documents For Evidence"]
[]
[]
[]
[null,"Business Rules for Attachments:"]
[]
[null,"- Ensure all fields in Section 1 are completed"]
[null,"- Ensure appropriate euquipment is selected only from Section 2"]
[null,"- Ensure all mandatory evidence is attached in Section 3"]
[null,"- Ensure all mandatory reading has been read in Section 4"]
[null,"- Ensure cover sheet is sgned and dated in Section 5 (Note: No digital signatures accepted, cover sheet to be printed and signed by contractor)"]
[null,"- Ensure attached evidence is clear and legible"]
[]
[null,"Failure to comply with the above business rules may result in submission being rejected"]

{"sheet":"EV_MMU","index":2,"n_rows":28,"n_cols":3,"rows_kept":28,"cut":false,"hidden":true,"merged":[]}
[null,"Medium Vehicle - Mobile Mixing Unit"]
[]
[]
[null,"Attached Documents For Evidence"]
[]
[]
[]
[null,"Business Rules for Attachments:"]
[]
[null,"- Ensure contractors name and pegasus number are visible"]
[null,"- Ensure the following 6 compentency's off Pegasus are clearly visible on the attached evidence sheet"]
[null,"MAC-PRD-TRN-013 Loading Pre-Splits Assessment"]
[null,"MAC-PRD-TRN-012 Loading Bulk Explosives Assessment"]
[null,"MAC-PRD-TRN-014 Transporting Explosives Assessment"]
[null,"MAC-PRD-TRN-029 Working Near Highwall and Crests Assessment"]
[null,"MAC-PRD-TRN-030 Actions in the Event of an Electrical Storm Assessment"]
[null,"MAC-PRD-TRN-032 Traffic Management in Drill and Blast Work Areas Assessment"]
[null,"- Ensure attached evidence is clear and legible"]
[null,"- Ensure attached evidence has relevant competency highlighted"]
[]
[null,"Failure to comply with the above business rules may result in submission being rejected"]
[]
[]
[]
[]
[]
[]
[null,null,"    OR"]

{"sheet":"EV_Letter_of_Support","index":3,"n_rows":14,"n_cols":2,"rows_kept":14,"cut":false,"hidden":true,"merged":[]}
[null,"Letter of Support Evidence"]
[]
[]
[null,"Attached Documents For Evidence"]
[]
[]
[]
[null,"Business Rules for Attachments:"]
[null,"- Ensure letter of support is on a company letterhead"]
[null,"- Ensure letter of support is signed by company official"]
[null,"- Ensure letter of support clearly states equipment and years experience"]
[null,"- Ensure attached evidence is clear and legible"]
[]
[null,"Failure to comply with the above business rules may result in submission being rejected"]

{"sheet":"EV_Statement_of_Attainment","index":4,"n_rows":15,"n_cols":2,"rows_kept":15,"cut":false,"hidden":true,"merged":[]}
[null,"Current Statement of Attainment or Competency Assessment Evidence"]
[]
[]
[null,"Attached Documents For Evidence"]
[]
[]
[]
[null,"Business Rules for Attachments:"]
[null,"- Statement of Attainment currency is to align with MAC Reassessment Time Frame for similar equipment provided in table below"]
[null,"- Assessment is mapped to relevant RII unit of Competency."]
[null,"- Assessment is mapped to Forestry FWPCOT 2238 unit of Competency *Chainsaw Only"]
[null,"- Ensure that all required fields are filled out correctly in an assessment."]
[null,"- Ensure attached evidence is clear and legible"]
[]
[null,"Failure to comply with the above business rules may result in submission being rejected"]

{"sheet":"EV_BHP_Asset_Induction","index":5,"n_rows":15,"n_cols":2,"rows_kept":15,"cut":false,"hidden":true,"merged":[]}
[null,"BHP Asset Induction Evidence"]
[]
[]
[null,"Attached Documents For Evidence"]
[]
[]
[]
[null,"Business Rules for Attachments:"]
[]
[null,"- Ensure contractors name and pegasus number are visible"]
[null,"- Ensure induction is current"]
[null,"- Ensure attached evidence is clear and legible"]
[null,"- Ensure attached evidence has relevant competency highlighted"]
[]
[null,"Failure to comply with the above business rules may result in submission being rejected"]

{"sheet":"EV_MAC_Site_Induction","index":6,"n_rows":15,"n_cols":2,"rows_kept":15,"cut":false,"hidden":true,"merged":[]}
[null,"MAC Site Induction Evidence"]
[]
[]
[null,"Attached Documents For Evidence"]
[]
[]
[]
[null,"Business Rules for Attachments:"]
[]
[null,"- Ensure contractors name and pegasus number are visible"]
[null,"- Ensure induction is current"]
[null,"- Ensure attached evidence is clear and legible"]
[null,"- Ensure attached evidence has relevant competency highlighted"]
[]
[null,"Failure to comply with the above business rules may result in submission being rejected"]

{"sheet":"EV_MAC_Code_of_Conduct","index":7,"n_rows":15,"n_cols":2,"rows_kept":15,"cut":false,"hidden":true,"merged":[]}
[null,"MAC Code of Conduct Evidence"]
[]
[]
[null,"Attached Documents For Evidence"]
[]
[]
[]
[null,"Business Rules for Attachments:"]
[]
[null,"- Ensure contractors name and pegasus number are visible"]
[null,"- Ensure induction is current"]
[null,"- Ensure attached evidence is clear and legible"]
[null,"- Ensure attached evidence has relevant competency highlighted"]
[]
[null,"Failure to comply with the above business rules may result in submission being rejected"]

{"sheet":"EV_Authorised_Isolation","index":8,"n_rows":15,"n_cols":2,"rows_kept":15,"cut":false,"hidden":true,"merged":[]}
[null,"Authorised Isolation Evidence"]
[]
[]
[null,"Attached Documents For Evidence"]
[]
[]
[]
[null,"Business Rules for Attachments:"]
[]
[null,"- Ensure contractors name and pegasus number are visible"]
[null,"- Ensure isolation training is current"]
[null,"- Ensure attached evidence is clear and legible"]
[null,"- Ensure attached evidence has relevant competency highlighted"]
[]
[null,"Failure to comply with the above business rules may result in submission being rejected"]

{"sheet":"EV_High_Risk_Work","index":9,"n_rows":17,"n_cols":2,"rows_kept":17,"cut":false,"hidden":true,"merged":[]}
[null,"Licence to Perform High Risk Work Evidence"]
[]
[]
[null,"Attached Documents For Evidence"]
[]
[]
[]
[null,"Business Rules for Attachments:"]
[]
[null,"- Ensure Licence is current"]
[null,"- Ensure front and back of card provided"]
[null,"- Ensure attached evidence is clear and legible"]
[null,"- High Risk Work Classication WP  *Elevated Work Platform Only"]
[null,"- High Risk Work Classication (at least one of the following CN, C1, CO, C2, C6) *Non Slewing Crane Only"]
[null,"- High Risk Work Classication that aligns with the capacity of the crane eg C6 (up to 60t), C2 (up to 20t), C1 (up to 100t), CO (all clases) * Slewing Crane Only"]
[]
[null,"Failure to comply with the above business rules may result in submission being rejected"]

{"sheet":"EV_WAF","index":10,"n_rows":15,"n_cols":2,"rows_kept":15,"cut":false,"hidden":true,"merged":[]}
[null,"Work Area Familiarisation Evidence"]
[]
[]
[null,"Attached Documents For Evidence"]
[]
[]
[]
[null,"Business Rules for Attachments:"]
[]
[null,"- Ensure contractors name and pegasus number are visible"]
[null,"- Ensure WAF is current"]
[null,"- Ensure attached evidence is clear and legible"]
[null,"- Ensure attached evidence has relevant competency highlighted"]
[]
[null,"Failure to comply with the above business rules may result in submission being rejected"]

{"sheet":"EV_Relevant_Attachments","index":11,"n_rows":12,"n_cols":2,"rows_kept":12,"cut":false,"hidden":true,"merged":[]}
[null,"Relevant Vehicle Attachment Evidence"]
[]
[]
[null,"Attached Documents For Evidence"]
[]
[]
[]
[null,"Business Rules for Attachments:"]
[]
[null,"- Ensure attached evidence is clear and legible"]
[]
[null,"Failure to comply with the above business rules may result in submission being rejected"]

{"sheet":"EV_BHP_LV_Licence","index":12,"n_rows":14,"n_cols":2,"rows_kept":14,"cut":false,"hidden":true,"merged":[]}
[null,"BHP Light Vehicle Licence"]
[]
[]
[null,"Attached Documents For Evidence"]
[]
[]
[]
[null,"Business Rules for Attachments:"]
[]
[null,"- Ensure Licence is current"]
[null,"- Ensure attached evidence is clear and legible"]
[]
[]
[null,"Failure to comply with the above business rules may result in submission being rejected"]

{"sheet":"EV_MHV_License","index":13,"n_rows":14,"n_cols":2,"rows_kept":14,"cut":false,"hidden":true,"merged":[]}
[null,"Medium / Heavy Vehicle Australian License Evidence"]
[]
[]
[null,"Attached Documents For Evidence"]
[]
[]
[]
[null,"Business Rules for Attachments:"]
[]
[null,"- Ensure Licence is current"]
[null,"- Ensure front and back of card provided"]
[null,"- Ensure attached evidence is clear and legible"]
[]
[null,"Failure to comply with the above business rules may result in submission being rejected"]

{"sheet":"EV_RII_Comp","index":14,"n_rows":33,"n_cols":2,"rows_kept":33,"cut":false,"hidden":true,"merged":[]}
[null,"Relevant RII Competency for Support Service Mine Vehicle Evidence"]
[]
[]
[null,"Attached Documents For Evidence"]
[]
[]
[]
[null,"Business Rules for Attachments:"]
[]
[null,"- Relevant RII Competency for Support Service Mine Vehicle Evidence as per examples table below"]
[null,"- Ensure attached evidence is clear and legible"]
[]
[null,"Failure to comply with the above business rules may result in submission being rejected"]
[]
[]
[null,"Medium Vehicle - Fuel Truck"]
[null,"RIISAM212 Service Mine plant and equipment or similar or Assessment"]
[]
[null,"Medium Vehicle - Hiab"]
[null,"High Risk work card Dogging DG"]
[]
[null,"Medium Vehicle - Stemming Truck"]
[null,"Stemming Truck Assessment"]
[]
[null,"Medium Vehicle - Tipper"]
[null,"RIIVEH304 Conduct Tip Truck Operations or Similar or Assessment"]
[]
[null,"Medium Vehicle - Water Truck"]
[null,"RIIMP0206 Coduct Bulk water truck operations or Similar or Assessment"]
[null,"RIIMP0326 Conduct Civil construction water cart operations"]
[]
[null,"Medium Vehicle - Mobile Mixing Unit"]
[null,"RIIVEH307 operate Heavy Rigid Vehicle, Conduct Mobile Mixing of Explosives"]

{"sheet":"EV_Other","index":15,"n_rows":12,"n_cols":2,"rows_kept":12,"cut":false,"hidden":true,"merged":[]}
[null,"Other Evidence"]
[]
[]
[null,"Attached Documents For Evidence"]
[]
[]
[]
[null,"Business Rules for Attachments:"]
[]
[null,"- Ensure attached evidence is clear and legible"]
[]
[null,"Failure to comply with the above business rules may result in submission being rejected"]

{"sheet":"EV_CERT_II_Drill_Ops","index":16,"n_rows":25,"n_cols":2,"rows_kept":25,"cut":false,"hidden":true,"merged":[]}
[null,"Certificate II or III Drilling Operations"]
[]
[]
[null,"Attached Documents For Evidence"]
[]
[]
[]
[null,"Business Rules for Attachments:"]
[]
[null,"- Ensure attached evidence is clear and legible"]
[null,"- Please attach one of the following"]
[null,"- Certificate II in Drilling Operations or equivalent"]
[null,"- OR"]
[null,"- Certificate III in Drilling Operations or equivalent"]
[]
[null,"Issuing Statements of Attainment"]
[null,"1.     RTOs must include the following information on a statement of attainment:"]
[null,"a)    the name, RTO Code and logo of the issuing organisation;"]
[null,"b)    a list of units of competency (or modules where no units of competency exist) showing their full title and the national code for each unit of competency;"]
[null,"c)    the authorised signatory;"]
[null,"d)    the National Registered Training Logo;"]
[null,"e)    the issuing organisation’s seal, corporate identifier or unique watermark;"]
[null,"f)     the words ‘A statement of attainment is issued by a Registered Training Organisation when an individual has completed one or more accredited units’;"]
[]
[null,"Failure to comply with the above business rules may result in submission being rejected"]

{"sheet":"EV_CERT_III_Drill_Ops","index":17,"n_rows":25,"n_cols":2,"rows_kept":25,"cut":false,"hidden":true,"merged":[]}
[null,"Certificate III or IV Drilling Operations"]
[]
[]
[null,"Attached Documents For Evidence"]
[]
[]
[]
[null,"Business Rules for Attachments:"]
[]
[null,"- Ensure attached evidence is clear and legible"]
[null,"- Please attach one of the following"]
[null,"- Certificate III in Drilling Operations or equivalent"]
[null,"- OR"]
[null,"- Certificate IV in Drilling Operations or equivalent"]
[]
[null,"Issuing Statements of Attainment"]
[null,"1.     RTOs must include the following information on a statement of attainment:"]
[null,"a)    the name, RTO Code and logo of the issuing organisation;"]
[null,"b)    a list of units of competency (or modules where no units of competency exist) showing their full title and the national code for each unit of competency;"]
[null,"c)    the authorised signatory;"]
[null,"d)    the National Registered Training Logo;"]
[null,"e)    the issuing organisation’s seal, corporate identifier or unique watermark;"]
[null,"f)     the words ‘A statement of attainment is issued by a Registered Training Organisation when an individual has completed one or more accredited units’;"]
[]
[null,"Failure to comply with the above business rules may result in submission being rejected"]

{"sheet":"EV_CERT_IV_Drill_Ops","index":18,"n_rows":25,"n_cols":2,"rows_kept":25,"cut":false,"hidden":true,"merged":[]}
[null,"Certificate IV Drilling Operations / Minerals Exploration"]
[]
[]
[null,"Attached Documents For Evidence"]
[]
[]
[]
[null,"Business Rules for Attachments:"]
[]
[null,"- Ensure attached evidence is clear and legible"]
[null,"- Please attach one of the following"]
[null,"- Certificate IV in Drilling Operations or equivalent"]
[null,"- OR"]
[null,"- Certificate IV in Minerals Exploration or equivalent"]
[]
[null,"Issuing Statements of Attainment"]
[null,"1.     RTOs must include the following information on a statement of attainment:"]
[null,"a)    the name, RTO Code and logo of the issuing organisation;"]
[null,"b)    a list of units of competency (or modules where no units of competency exist) showing their full title and the national code for each unit of competency;"]
[null,"c)    the authorised signatory;"]
[null,"d)    the National Registered Training Logo;"]
[null,"e)    the issuing organisation’s seal, corporate identifier or unique watermark;"]
[null,"f)     the words ‘A statement of attainment is issued by a Registered Training Organisation when an individual has completed one or more accredited units’;"]
[]
[null,"Failure to comply with the above business rules may result in submission being rejected"]

{"sheet":"EV_Driller_RIIOGD205","index":19,"n_rows":23,"n_cols":2,"rows_kept":23,"cut":false,"hidden":true,"merged":[]}
[null,"RIIOGD205 Support Blow Out Prevention Operations"]
[]
[]
[null,"Attached Documents For Evidence"]
[]
[]
[]
[null,"Business Rules for Attachments:"]
[]
[null,"- Ensure attached evidence is clear and legible"]
[null,"- Please attach the following"]
[null,"- RIIOGD205 Support Blow Out Prevention Operations or equivalent"]
[]
[null,"Issuing Statements of Attainment"]
[null,"1.     RTOs must include the following information on a statement of attainment:"]
[null,"a)    the name, RTO Code and logo of the issuing organisation;"]
[null,"b)    a list of units of competency (or modules where no units of competency exist) showing their full title and the national code for each unit of competency;"]
[null,"c)    the authorised signatory;"]
[null,"d)    the National Registered Training Logo;"]
[null,"e)    the issuing organisation’s seal, corporate identifier or unique watermark;"]
[null,"f)     the words ‘A statement of attainment is issued by a Registered Training Organisation when an individual has completed one or more accredited units’;"]
[]
[null,"Failure to comply with the above business rules may result in submission being rejected"]

{"sheet":"EV_Driller_RIIOGD206","index":20,"n_rows":23,"n_cols":2,"rows_kept":23,"cut":false,"hidden":true,"merged":[]}
[null,"RIIODG206 Assist Coal Seam Gas Control"]
[]
[]
[null,"Attached Documents For Evidence"]
[]
[]
[]
[null,"Business Rules for Attachments:"]
[]
[null,"- Ensure attached evidence is clear and legible"]
[null,"- Please attach the following"]
[null,"- RIIODG206 Assist Coal Seam Gas Control or equivalent"]
[]
[null,"Issuing Statements of Attainment"]
[null,"1.     RTOs must include the following information on a statement of attainment:"]
[null,"a)    the name, RTO Code and logo of the issuing organisation;"]
[null,"b)    a list of units of competency (or modules where no units of competency exist) showing their full title and the national code for each unit of competency;"]
[null,"c)    the authorised signatory;"]
[null,"d)    the National Registered Training Logo;"]
[null,"e)    the issuing organisation’s seal, corporate identifier or unique watermark;"]
[null,"f)     the words ‘A statement of attainment is issued by a Registered Training Organisation when an individual has completed one or more accredited units’;"]
[]
[null,"Failure to comply with the above business rules may result in submission being rejected"]

{"sheet":"EV_Driller_RIIOGD304","index":21,"n_rows":23,"n_cols":2,"rows_kept":23,"cut":false,"hidden":true,"merged":[]}
[null,"RIIOGD304 Apply Effective Coal Seam Gas Control Practices"]
[]
[]
[null,"Attached Documents For Evidence"]
[]
[]
[]
[null,"Business Rules for Attachments:"]
[]
[null,"- Ensure attached evidence is clear and legible"]
[null,"- Please attach the following"]
[null,"- RIIOGD304 Apply Effective Coal Seam Gas Control Practices or equivalent"]
[]
[null,"Issuing Statements of Attainment"]
[null,"1.     RTOs must include the following information on a statement of attainment:"]
[null,"a)    the name, RTO Code and logo of the issuing organisation;"]
[null,"b)    a list of units of competency (or modules where no units of competency exist) showing their full title and the national code for each unit of competency;"]
[null,"c)    the authorised signatory;"]
[null,"d)    the National Registered Training Logo;"]
[null,"e)    the issuing organisation’s seal, corporate identifier or unique watermark;"]
[null,"f)     the words ‘A statement of attainment is issued by a Registered Training Organisation when an individual has completed one or more accredited units’;"]
[]
[null,"Failure to comply with the above business rules may result in submission being rejected"]

{"sheet":"EV_Driller_RIIOGD305","index":22,"n_rows":23,"n_cols":2,"rows_kept":23,"cut":false,"hidden":true,"merged":[]}
[null,"RIIOGD305 Apply Blow Out Prevention Operation Procedures"]
[]
[]
[null,"Attached Documents For Evidence"]
[]
[]
[]
[null,"Business Rules for Attachments:"]
[]
[null,"- Ensure attached evidence is clear and legible"]
[null,"- Please attach the following"]
[null,"- RIIOGD305 Apply Blow Out Prevention Operation Procedures or equivalent"]
[]
[null,"Issuing Statements of Attainment"]
[null,"1.     RTOs must include the following information on a statement of attainment:"]
[null,"a)    the name, RTO Code and logo of the issuing organisation;"]
[null,"b)    a list of units of competency (or modules where no units of competency exist) showing their full title and the national code for each unit of competency;"]
[null,"c)    the authorised signatory;"]
[null,"d)    the National Registered Training Logo;"]
[null,"e)    the issuing organisation’s seal, corporate identifier or unique watermark;"]
[null,"f)     the words ‘A statement of attainment is issued by a Registered Training Organisation when an individual has completed one or more accredited units’;"]
[]
[null,"Failure to comply with the above business rules may result in submission being rejected"]

{"sheet":"EV_Driller_RIIOGD402","index":23,"n_rows":23,"n_cols":2,"rows_kept":23,"cut":false,"hidden":true,"merged":[]}
[null,"RIIOGD402 Participate in nippling-up and pressure test"]
[]
[]
[null,"Attached Documents For Evidence"]
[]
[]
[]
[null,"Business Rules for Attachments:"]
[]
[null,"- Ensure attached evidence is clear and legible"]
[null,"- Please attach the following"]
[null,"- RIIOGD402 Participate in nippling-up and pressure test or equivalent"]
[]
[null,"Issuing Statements of Attainment"]
[null,"1.     RTOs must include the following information on a statement of attainment:"]
[null,"a)    the name, RTO Code and logo of the issuing organisation;"]
[null,"b)    a list of units of competency (or modules where no units of competency exist) showing their full title and the national code for each unit of competency;"]
[null,"c)    the authorised signatory;"]
[null,"d)    the National Registered Training Logo;"]
[null,"e)    the issuing organisation’s seal, corporate identifier or unique watermark;"]
[null,"f)     the words ‘A statement of attainment is issued by a Registered Training Organisation when an individual has completed one or more accredited units’;"]
[]
[null,"Failure to comply with the above business rules may result in submission being rejected"]

{"sheet":"EV_Driller_RIIOGD405","index":24,"n_rows":23,"n_cols":2,"rows_kept":23,"cut":false,"hidden":true,"merged":[]}
[null,"RIIOGD405 Carry Out Well Control and Blow Out Prevention"]
[]
[]
[null,"Attached Documents For Evidence"]
[]
[]
[]
[null,"Business Rules for Attachments:"]
[]
[null,"- Ensure attached evidence is clear and legible"]
[null,"- Please attach the following"]
[null,"- RIIOGD405 Carry Out Well Control and Blow Out Prevention or equivalent"]
[]
[null,"Issuing Statements of Attainment"]
[null,"1.     RTOs must include the following information on a statement of attainment:"]
[null,"a)    the name, RTO Code and logo of the issuing organisation;"]
[null,"b)    a list of units of competency (or modules where no units of competency exist) showing their full title and the national code for each unit of competency;"]
[null,"c)    the authorised signatory;"]
[null,"d)    the National Registered Training Logo;"]
[null,"e)    the issuing organisation’s seal, corporate identifier or unique watermark;"]
[null,"f)     the words ‘A statement of attainment is issued by a Registered Training Organisation when an individual has completed one or more accredited units’;"]
[]
[null,"Failure to comply with the above business rules may result in submission being rejected"]

{"sheet":"EV_Driller_Group","index":25,"n_rows":29,"n_cols":2,"rows_kept":29,"cut":false,"hidden":true,"merged":[]}
[null,"Driller Certificates"]
[]
[]
[null,"Attached Documents For Evidence"]
[]
[]
[]
[null,"Business Rules for Attachments:"]
[]
[null,"- Ensure attached evidence is clear and legible"]
[null,"- Please attach one of the following"]
[null,"- RIINHB304 Conduct Air Drilling or equivalent"]
[null,"- OR"]
[null,"- RIINHB307 Conduct Conventional Core Drilling or equivalent"]
[null,"- OR"]
[null,"- RIINHB308 Conduct Wireline Core Drilling or equivalent"]
[null,"- OR"]
[null,"- RIINHB311 Conduct Mud Rotary Drilling or equivalent"]
[]
[null,"Issuing Statements of Attainment"]
[null,"1.     RTOs must include the following information on a statement of attainment:"]
[null,"a)    the name, RTO Code and logo of the issuing organisation;"]
[null,"b)    a list of units of competency (or modules where no units of competency exist) showing their full title and the national code for each unit of competency;"]
[null,"c)    the authorised signatory;"]
[null,"d)    the National Registered Training Logo;"]
[null,"e)    the issuing organisation’s seal, corporate identifier or unique watermark;"]
[null,"f)     the words ‘A statement of attainment is issued by a Registered Training Organisation when an individual has completed one or more accredited units’;"]
[]
[null,"Failure to comply with the above business rules may result in submission being rejected"]

{"sheet":"EV_Water_Bore_Drill","index":26,"n_rows":27,"n_cols":2,"rows_kept":27,"cut":false,"hidden":true,"merged":[]}
[null,"Water Bore Drillers Licences"]
[]
[]
[null,"Attached Documents For Evidence"]
[]
[]
[]
[null,"Business Rules for Attachments:"]
[]
[null,"- Ensure attached evidence is clear and legible"]
[null,"- Please attach one of the following"]
[null,"- Water Bore Driller Class 1 or equivalent"]
[null,"- OR"]
[null,"- Water Bore Driller Class 2 or equivalent"]
[null,"- OR"]
[null,"- Water Bore Driller Class 3 or equivalent"]
[]
[null,"For the above License please refer to the following website for more details "]
[null,"- https://www.waternsw.com.au/customer-service/water-licensing/about-licences/drillers-licences"]
[]
[]
[]
[]
[]
[]
[]
[null,"Failure to comply with the above business rules may result in submission being rejected"]

{"sheet":"EV_Driller_LtrEndorse","index":27,"n_rows":18,"n_cols":2,"rows_kept":18,"cut":false,"hidden":true,"merged":[]}
[null,"Water Bore Licence Letter of Endorsement"]
[]
[]
[null,"Water Bore Licence Letter of Endorsement"]
[]
[]
[]
[null,"Business Rules for Attachments:"]
[]
[null,"- Ensure attached evidence is clear and legible"]
[null,"- Please attach the following"]
[null,"- Water Bore Lic Letter of Endoresment or equivalent"]
[]
[null,"For the above Endoresment please refer to the following website for more details "]
[null,"- https://www.waternsw.com.au/customer-service/water-licensing/approvals/water-supply-work-and-use-approvals"]
[]
[]
[null,"Failure to comply with the above business rules may result in submission being rejected"]

{"sheet":"EV_Barricading","index":28,"n_rows":14,"n_cols":2,"rows_kept":14,"cut":false,"hidden":true,"merged":[]}
[null,"Barricading (MIT)"]
[]
[]
[null,"Attached Documents For Evidence"]
[]
[]
[]
[null,"Business Rules for Attachments:"]
[]
[null,"- Ensure attached evidence is clear and legible"]
[null,"- All fields to be completed on all pages"]
[null,"- All questions marked as competent"]
[]
[null,"Failure to comply with the above business rules may result in submission being rejected"]

{"sheet":"EV_Working_at_Heights","index":29,"n_rows":14,"n_cols":2,"rows_kept":14,"cut":false,"hidden":true,"merged":[]}
[null,"Working at Heigths (MIT)"]
[]
[]
[null,"Attached Documents For Evidence"]
[]
[]
[]
[null,"Business Rules for Attachments:"]
[]
[null,"- Ensure attached evidence is clear and legible"]
[null,"- Ensure certificate is signed"]
[null,"- 100% Pass mark required"]
[]
[null,"Failure to comply with the above business rules may result in submission being rejected"]

{"sheet":"EV_SOA_WAH","index":30,"n_rows":15,"n_cols":2,"rows_kept":15,"cut":false,"hidden":true,"merged":[]}
[null,"SOA Working at Heigths RIIOHS204A"]
[]
[]
[null,"Attached Documents For Evidence"]
[]
[]
[]
[null,"Business Rules for Attachments:"]
[]
[null,"- Ensure attached evidence is clear and legible"]
[null,"- Attainment date on evidence to be within three years"]
[null,"- To display \"Nationally Recognised Training\" symbol (See below)"]
[null,"- Aligned to nationally competency RIIWHS204 working safely at heights"]
[]
[null,"Failure to comply with the above business rules may result in submission being rejected"]

{"sheet":"EV_Lifting","index":31,"n_rows":14,"n_cols":2,"rows_kept":14,"cut":false,"hidden":true,"merged":[]}
[null,"Lifting"]
[]
[]
[null,"Attached Documents For Evidence"]
[]
[]
[]
[null,"Business Rules for Attachments:"]
[]
[null,"- Ensure attached evidence is clear and legible"]
[null,"- Ensure certificate is signed"]
[null,"- 100% Pass mark required"]
[]
[null,"Failure to comply with the above business rules may result in submission being rejected"]

{"sheet":"EV_CCA","index":32,"n_rows":15,"n_cols":2,"rows_kept":15,"cut":false,"hidden":true,"merged":[]}
[null,"Company Competency Assessment"]
[]
[]
[null,"Attached Documents For Evidence"]
[]
[]
[]
[null,"Business Rules for Attachments:"]
[]
[null,"- Ensure attached evidence is clear and legible"]
[null,"- Ensure assessment is signed by applicant and qualified trainer and assessor"]
[null,"- All fields are completed as required"]
[null,"- Competency assessment is applicable to the relevant equipment make and model"]
[]
[null,"Failure to comply with the above business rules may result in submission being rejected"]

{"sheet":"EV_Machine_Specific","index":33,"n_rows":12,"n_cols":2,"rows_kept":12,"cut":false,"hidden":true,"merged":[]}
[null,"Machine Specific Familiarisation OR \nMachine Specific Challenge Test Evidence"]
[]
[]
[null,"Attached Documents For Evidence"]
[]
[]
[]
[null,"Business Rules for Attachments:"]
[]
[null,"- Ensure attached evidence is clear and legible"]
[]
[null,"Failure to comply with the above business rules may result in submission being rejected"]

{"sheet":"EV_Pressure_Jetting_A","index":34,"n_rows":20,"n_cols":2,"rows_kept":20,"cut":false,"hidden":true,"merged":[]}
[null,"Pressure Jetting Class A - Evidence of Competency"]
[]
[]
[null,"Attached Documents For Evidence"]
[]
[]
[]
[null,"Business Rules for Attachments:"]
[]
[null,"- Ensure attached evidence is clear and legible"]
[null,"- Attach evidence of ONE of the following;"]
[null,"- Internal company training and assessment evidence (must be authorised by a CERT IV Trainer & Assessor)"]
[null,"- OR"]
[null,"- MSMSS00017 - Use High Pressure Water Jetting Equipment (issued by an RTO)"]
[null,"- OR"]
[null,"- High Pressure Jetting Awareness Course (statement of attainment)"]
[null,"- OR"]
[null,"- MAC-STE--TRN-091 Operate High Pressure Water Equipment"]
[]
[null,"Failure to comply with the above business rules may result in submission being rejected"]

{"sheet":"EV_Pressure_Jetting_B","index":35,"n_rows":23,"n_cols":2,"rows_kept":23,"cut":false,"hidden":true,"merged":[]}
[null,"Pressure Jetting Class B - Evidence of Competency"]
[]
[]
[null,"Attached Documents For Evidence"]
[]
[]
[]
[null,"Business Rules for Attachments:"]
[]
[null,"- Ensure attached evidence is clear and legible"]
[null,"- MSMSS00018 - Operate a High Pressure Water Jetting System (issued by an RTO, superseeded versions accepted)"]
[]
[null,"Issuing Statements of Attainment:"]
[]
[null,"1.     RTOs must include the following information on a statement of attainment:"]
[null,"a)    the name, RTO Code and logo of the issuing organisation;"]
[null,"b)    a list of units of competency (or modules where no units of competency exist) showing their full title and the national code for each unit of competency;"]
[null,"c)    the authorised signatory;"]
[null,"d)    the National Registered Training Logo;"]
[null,"e)    the issuing organisation’s seal, corporate identifier or unique watermark;"]
[null,"f)     the words ‘A statement of attainment is issued by a Registered Training Organisation when an individual has completed one or more accredited units’;"]
[]
[null,"Failure to comply with the above business rules may result in submission being rejected"]

{"sheet":"EV_HPW_Jetting_Awareness","index":36,"n_rows":12,"n_cols":2,"rows_kept":12,"cut":false,"hidden":true,"merged":[]}
[null,"High Pressure Jetting Awareness Course Evidence"]
[]
[]
[null,"Attached Documents For Evidence"]
[]
[]
[]
[null,"Business Rules for Attachments:"]
[]
[null,"- Ensure attached evidence is clear and legible"]
[]
[null,"Failure to comply with the above business rules may result in submission being rejected"]

{"sheet":"EV_MAC_STE_TRN_091","index":37,"n_rows":12,"n_cols":2,"rows_kept":12,"cut":false,"hidden":true,"merged":[]}
[null,"MAC-STE-TRN-091 Operate High Pressure Water Equipment Evidence"]
[]
[]
[null,"Attached Documents For Evidence"]
[]
[]
[]
[null,"Business Rules for Attachments:"]
[]
[null,"- Ensure attached evidence is clear and legible"]
[]
[null,"Failure to comply with the above business rules may result in submission being rejected"]

{"sheet":"EV_RTO_MSMS00018","index":38,"n_rows":12,"n_cols":2,"rows_kept":12,"cut":false,"hidden":true,"merged":[]}
[null,"RTO MSMS00018 Operate a High Pressure Water Jetting System Evidence"]
[]
[]
[null,"Attached Documents For Evidence"]
[]
[]
[]
[null,"Business Rules for Attachments:"]
[]
[null,"- Ensure attached evidence is clear and legible"]
[]
[null,"Failure to comply with the above business rules may result in submission being rejected"]

{"sheet":"EV_Missing_Equip","index":39,"n_rows":4,"n_cols":2,"rows_kept":4,"cut":false,"hidden":true,"merged":[]}
[null,"Other Evidence"]
[]
[]
[null,"Attached Documents For Evidence"]

{"sheet":"MD_MAC-STE-GDE-007","index":40,"n_rows":9,"n_cols":17,"rows_kept":9,"cut":false,"hidden":true,"merged":[[1,1,1,7]]}
[null,null,null,"Document Ipick Link:","No Longer Required",null,null,null,null,"Document Name:","No Longer Required",null,null,null,null,"Ipick Document: ","Yes"]
[null,{"$f":"MandatoryReadingTitle","v":"MAC-STE-STD-149 Working Near Slopes and Crests"}]
[]
[]
[null,"Please navigate to Tempo and read the latest version of this document. See below QRG for details on how to access and navigate Tempo"]
[]
[]
[]
[null,"I have read and understood this document"]

{"sheet":"Workbook Parameters","index":41,"n_rows":22,"n_cols":3,"rows_kept":22,"cut":false,"hidden":true,"merged":[]}
[]
[]
[null,"System Parameters"]
[]
[null,"SystemName","Contractor VOC Form"]
[]
[]
[]
[null,"Mandatory Reading"]
[]
[null,"ContractorInputRow",62]
[null,"MandatoryReadingRow",{"$f":"ContractorInputRow-ROW(SelectedReadingTable[#Headers])","v":10}]
[null,"MandatoryReadingTitle",{"$f":"OFFSET(Section4_MandatoryReading, 2+MandatoryReadingRow, 0, 1, 1)","v":"MAC-STE-STD-149 Working Near Slopes and Crests"}]
[]
[]
[null,"Email Parameters"]
[]
[null,"MACEmailToAddress","nswec.voc@bhp.com"]
[null,"MACEmailCCAddress"]
[null,"MACEmailSubject",{"$f":"ContractorPegasusNumber&\"_\" &ContractorCompany&\"_\"&ContractorName& \"_Contractor MAC VOC\"","v":"___Contractor MAC VOC"}]
[null,"MACEmailBody","***DO NOT change the Subject heading of this email***\n\nHi,\n\nPlease see attached supporting documents for approval"]
[null,"MACEmailBodyEquipMissing","***DO NOT change the Subject heading of this email***\n\nHi,\n\nThe following equipment type is not covered off within the current form.\n\nPlease update form to include \"Insert Missing Equipment Type Here\" and re-send updated form so I can complete the VOC Process"]